[Event "European Womens-ch 2025"]
[Site "Rhodes"]
[Date "2025.03.31"]
[Round "1.36"]
[White "Korenova, Martina"]
[Black "Kochavi, Dana"]
[Result "1-0"]
[Annotator "RC"]
[ECO "E90"]
[WhiteElo "2045"]
[BlackElo "2301"]
[PlyCount "147"]
[EventDate "2025.03.29"]
[EventType "swiss"]
[EventCountry "GRE"]
[SourceTitle "playchess.com"]
[Source "ChessBase"]
[SourceQuality "1"]
[TimeControl "40/5400+30:1800+30"]

1. d4 {[%emt 0:00:13]} Nf6 {[%emt 0:00:07]} 2. c4 {[%emt 0:00:22]} g6 {[%emt 0:00:06]} 3. Nc3 {[%emt 0:00:06]} Bg7 {[%emt 0:00:05]} 4. e4 {[%emt 0:00:13]} d6 {[%emt 0:00:05]} 5. Nf3 {[%emt 0:00:11]} O-O {[%emt 0:00:09]} 6. h3 {[%emt 0:02:36]} e5 {[%emt 0:00:07]} 7. dxe5 {[%emt 0:00:52]} dxe5 {[%emt 0:00:04]} 8. Qxd8 {[%emt 0:00:19]} Rxd8 {[%emt 0:00:06]} 9. Bg5 {[%emt 0:00:12]} c6 {[%emt 0:04:40]} 10. Nxe5 {[%emt 0:02:15]} Re8 {[%emt 0:00:24]} 11. O-O-O {[%emt 0:01:12]} Na6 {[%emt 0:16:31]} 12. Nf3 {[%emt 0:13:33]} Nc5 {[%emt 0:11:58]} 13. Bd3 {[%emt 0:05:19]} Nxd3+ {[%emt 0:19:56]} 14. Rxd3 {[%emt 0:00:11]} Nxe4 {[%emt 0:01:31]} 15. Nxe4 {[%emt 0:03:19]} Bf5 {[%emt 0:01:39]} 16. Nc5 {[%emt 0:02:07]} Bxd3 {[%emt 0:06:38]} 17. Nxd3 {[%emt 0:00:06]} Re4 {[%emt 0:00:31]} 18. Nd2 {[%emt 0:02:52]} Rd4 {[%emt 0:01:15]} 19. Kc2 {[%emt 0:00:33]} b5 {[%emt 0:00:07]} 20. Be3 {[%emt 0:03:08]} Rd6 {[%emt 0:02:47]} 21. c5 {[%emt 0:03:00]} Re6 {[%emt 0:02:32]} 22. h4 {[%emt 0:08:00]} h5 {[%emt 0:01:27]} 23. Nf3 {[%emt 0:01:28]} Rd8 {[%emt 0:05:08]} 24. b3 {[%emt 0:00:31]} a5 {[%emt 0:01:08]} 25. Rd1 {[%emt 0:03:42]} Re4 {[%emt 0:03:19]} 26. Nf4 {[%emt 0:05:25]} Rxd1 {[%emt 0:02:34]} 27. Kxd1 {[%emt 0:00:05]} Kf8 {[%emt 0:01:31]} 28. Kc2 {[%emt 0:01:47]} Ke8 {[%emt 0:04:36]} 29. Ng5 {[%emt 0:09:38]} Re7 {[%emt 0:00:32]} 30. Bd2 {[%emt 0:00:52]} Bd4 {[%emt 0:01:45]} 31. Nd3 {[%emt 0:00:52]} b4 {[%emt 0:04:24]} 32. Kd1 {[%emt 0:02:58]} Kd7 {[%emt 0:03:03]} 33. f3 {[%emt 0:29:03]} f6 {[%emt 0:04:01]} 34. Ne4 {[%emt 0:00:00]} Ke6 {[%emt 0:00:30]} 35. Bf4 {[%emt 0:00:00]} Rg7 {[%emt 0:01:01]} 36. Ke2 {[%emt 0:00:00]} Kd5 {[%emt 0:00:33]} 37. Bd6 {[%emt 0:00:00]} g5 {[%emt 0:01:27]} 38. hxg5 {[%emt 0:00:00]} fxg5 {[%emt 0:00:06]} 39. Nxg5 {[%emt 0:00:00]} Bxc5 {[%emt 0:00:08]} 40. Bxc5 {[%emt 0:00:00]} Rxg5 {[%emt 0:00:00]} 41. Bf2 {[%emt 0:00:00]} c5 {[%emt 0:02:35]} 42. g3 {[%emt 0:00:00]} c4 {[%emt 0:01:07]} 43. Nf4+ {[%emt 0:00:00]} Kd6 {[%emt 0:02:07]} 44. bxc4 {[%emt 0:00:00]} a4 {[%emt 0:00:49]} 45. Kd3 {[%emt 0:00:12]} Rf5 {[%emt 0:01:51]} 46. Be3 {[%emt 0:36:18]} Rf7 {[%emt 0:07:06]} 47. c5+ {[%emt 0:00:00]} Kc6 {[%emt 0:02:19]} 48. Kc4 {[%emt 0:00:00]} Rb7 {[%emt 0:01:38]} 49. Nd3 {[%emt 0:00:00]} b3 {[%emt 0:00:49]} 50. axb3 {[%emt 0:00:00]} Rxb3 {[%emt 0:01:33]} 51. Nb4+ {[%emt 0:00:00]} Kb7 {[%emt 0:01:47]} 52. c6+ {[%emt 0:00:00]} Kc8 {[%emt 0:00:02]} 53. Nd5 {[%emt 0:00:00]} Rb2 {[%emt 0:01:14]} 54. Nb6+ {[%emt 0:00:00]} Kc7 {[%emt 0:00:08]} 55. Nxa4 {[%emt 0:00:00]} Rc2+ {[%emt 0:00:08]} 56. Kd5 Rxc6 {[%emt 0:00:32]} 57. Bf4+ {[%emt 0:00:00]} Kb7 {[%emt 0:00:05]} 58. Nc5+ {[%emt 0:00:00]} Kb6 {[%emt 0:00:04]} 59. Nd7+ {[%emt 0:00:00]} Kb5 {[%emt 0:00:06]} 60. Ne5 {[%emt 0:00:00]} Rc2 {[%emt 0:02:36]} 61. Bg5 {[%emt 0:00:00]} Rg2 {[%emt 0:01:21]} 62. Bh4 {[%emt 0:00:00]} Rd2+ {[%emt 0:00:05]} 63. Ke6 {[%emt 0:00:00]} Kc5 {[%emt 0:00:18]} 64. f4 {[%emt 0:00:00]} Re2 {[%emt 0:00:36]} 65. Kf5 {[%emt 0:00:28]} Kd5 {[%emt 0:00:04]} 66. Kg5 {[%emt 0:01:17]} Ke6 {[%emt 0:01:18]} 67. Ng6 {[%emt 0:01:07]} Kf7 {[%emt 0:02:28]} 68. Kxh5 {[%emt 0:00:23]} Re6 {[%emt 0:00:27]} 69. f5 {[%emt 0:00:42]} Ra6 {[%emt 0:00:20]} 70. g4 {[%emt 0:01:00]} Kg7 {[%emt 0:00:28]} 71. f6+ {[%emt 0:00:24]} Kh7 {[%emt 0:00:08]} 72. g5 {[%emt 0:02:38]} Rb6 {[%emt 0:02:44]} 73. f7 {[%emt 0:01:09]} Rxg6 {[%emt 0:00:27]} 74. f8=N+ {[%emt 0:00:09]} 1-0

[Event "European Womens-ch 2025"]
[Site "Rhodes"]
[Date "2025.03.31"]
[Round "1.37"]
[White "Heinemann, Josefine"]
[Black "Mihaljevic, Eva"]
[Result "1-0"]
[Annotator "RC"]
[ECO "E05"]
[WhiteElo "2297"]
[BlackElo "2039"]
[PlyCount "79"]
[EventDate "2025.03.29"]
[EventType "swiss"]
[EventCountry "GRE"]
[SourceTitle "playchess.com"]
[Source "ChessBase"]
[SourceQuality "1"]
[TimeControl "40/5400+30:1800+30"]

1. c4 {[%emt 0:00:05]} e6 {[%emt 1:31:00]} 2. g3 {[%emt 0:00:33]} d5 {[%emt 0:00:00]} 3. Bg2 {[%emt 0:00:07]} Nf6 {[%emt 0:00:00]} 4. Nf3 {[%emt 0:00:29]} Be7 {[%emt 0:00:00]} 5. O-O {[%emt 0:00:09]} O-O {[%emt 0:00:00]} 6. d4 {[%emt 0:00:26]} dxc4 {[%emt 0:00:00]} 7. Qa4 {[%emt 0:02:08]} a6 {[%emt 0:00:00]} 8. Qxc4 {[%emt 0:00:15]} b5 {[%emt 0:00:00]} 9. Qc2 {[%emt 0:00:16]} Bb7 {[%emt 0:00:00]} 10. Bf4 {[%emt 0:00:31]} Nc6 {[%emt 0:00:00]} 11. Nc3 {[%emt 0:03:08]} Nb4 {[%emt 0:00:00]} 12. Qc1 {[%emt 0:00:27]} Nbd5 {[%emt 0:00:00]} 13. Nxd5 {[%emt 0:00:32]} Nxd5 {[%emt 0:00:00]} 14. Bg5 {[%emt 0:00:41]} Rc8 {[%emt 0:00:00]} 15. a3 {[%emt 0:02:31]} f6 {[%emt 0:00:00]} 16. Bd2 {[%emt 0:00:09]} c5 {[%emt 0:00:00]} 17. Qe1 {[%emt 0:00:09]} cxd4 {[%emt 0:00:00]} 18. Nxd4 {[%emt 0:03:55]} Qb6 {[%emt 0:00:00]} 19. Nb3 {[%emt 0:07:14]} Bd6 {[%emt 0:00:00]} 20. Rd1 {[%emt 0:09:17]} b4 {[%emt 0:00:00]} 21. e4 {[%emt 0:08:34]} Ne7 {[%emt 0:00:00]} 22. Be3 {[%emt 0:04:15]} Qc7 {[%emt 0:00:00]} 23. Nd4 {[%emt 0:02:44]} Qb8 {[%emt 0:00:31]} 24. Nxe6 {[%emt 0:04:11]} Rfe8 {[%emt 0:00:12]} 25. Qd2 {[%emt 0:05:04]} Be5 {[%emt 0:04:27]} 26. f4 {[%emt 0:03:11]} Bc7 {[%emt 0:01:45]} 27. Nxc7 {[%emt 0:00:48]} Qxc7 {[%emt 0:00:27]} 28. Qxb4 {[%emt 0:01:51]} Bc6 {[%emt 0:03:53]} 29. Rc1 {[%emt 0:04:24]} Qb7 {[%emt 0:01:24]} 30. Qxb7 {[%emt 0:00:16]} Bxb7 {[%emt 0:00:01]} 31. Bd4 {[%emt 0:01:49]} Rcd8 {[%emt 0:00:43]} 32. Bc3 {[%emt 0:00:18]} Ng6 {[%emt 0:00:46]} 33. Rfe1 {[%emt 0:00:57]} Rc8 {[%emt 0:00:51]} 34. Rcd1 {[%emt 0:00:48]} Rc4 {[%emt 0:00:37]} 35. e5 {[%emt 0:01:40]} Bxg2 {[%emt 0:00:35]} 36. Kxg2 {[%emt 0:00:04]} fxe5 {[%emt 0:00:35]} 37. fxe5 {[%emt 0:00:14]} Rc5 {[%emt 0:00:24]} 38. e6 {[%emt 0:00:20]} Rc6 {[%emt 0:00:34]} 39. Rd7 {[%emt 0:01:08]} Re7 {[%emt 0:00:42]} 40. Rd8+ {[%emt 0:00:00]} 1-0

[Event "European Womens-ch 2025"]
[Site "Rhodes"]
[Date "2025.03.31"]
[Round "1.39"]
[White "Yao, Lan"]
[Black "Zvereva, Marija"]
[Result "1-0"]
[Annotator "RC"]
[ECO "B30"]
[WhiteElo "2294"]
[BlackElo "2033"]
[PlyCount "71"]
[EventDate "2025.03.29"]
[EventType "swiss"]
[EventCountry "GRE"]
[SourceTitle "playchess.com"]
[Source "ChessBase"]
[SourceQuality "1"]
[TimeControl "40/5400+30:1800+30"]

1. e4 {[%emt 0:00:52]} c5 {[%emt 0:00:13]} 2. Nf3 {[%emt 0:00:07]} Nc6 {[%emt 0:00:12]} 3. Bb5 {[%emt 0:00:09]} e5 {[%emt 0:02:34]} 4. O-O {[%emt 0:00:20]} Bd6 {[%emt 0:01:09]} 5. c3 {[%emt 0:00:52]} a6 {[%emt 0:03:37]} 6. Ba4 {[%emt 0:05:24]} b5 {[%emt 0:00:40]} 7. Bc2 {[%emt 0:00:07]} Qb6 {[%emt 0:13:51]} 8. d3 {[%emt 0:02:34]} Nf6 {[%emt 0:07:18]} 9. Be3 {[%emt 0:04:31]} Ng4 {[%emt 0:10:32]} 10. Bg5 {[%emt 0:00:28]} h6 {[%emt 0:07:04]} 11. Bh4 {[%emt 0:00:30]} g5 {[%emt 0:15:08]} 12. Bg3 {[%emt 0:00:06]} Nf6 {[%emt 0:01:05]} 13. d4 {[%emt 0:04:08]} cxd4 {[%emt 0:00:48]} 14. cxd4 {[%emt 0:00:06]} Qc7 {[%emt 0:10:44]} 15. Nc3 {[%emt 0:04:20]} Bb7 {[%emt 0:03:42]} 16. Nd5 {[%emt 0:04:27]} Nxd5 {[%emt 0:04:33]} 17. exd5 {[%emt 0:00:03]} Nxd4 {[%emt 0:05:31]} 18. Nxd4 {[%emt 0:00:07]} exd4 {[%emt 0:00:03]} 19. Re1+ {[%emt 0:00:19]} Kf8 {[%emt 0:02:00]} 20. Qxd4 {[%emt 0:01:52]} Rg8 {[%emt 0:00:04]} 21. Bb3 {[%emt 0:05:59]} Bxg3 {[%emt 0:00:24]} 22. hxg3 {[%emt 0:00:23]} Qd6 {[%emt 0:00:20]} 23. Re3 {[%emt 0:02:43]} Rc8 {[%emt 0:03:47]} 24. Rae1 {[%emt 0:00:21]} Rg6 {[%emt 0:01:16]} 25. Re7 {[%emt 0:09:37]} Ba8 {[%emt 0:03:19]} 26. Qe4 {[%emt 0:04:23]} Bb7 {[%emt 0:00:48]} 27. Qf5 {[%emt 0:08:43]} Qxe7 {[%emt 0:00:37]} 28. Rxe7 {[%emt 0:00:05]} Kxe7 {[%emt 0:00:04]} 29. Qe5+ {[%emt 0:00:58]} Kf8 {[%emt 0:01:32]} 30. d6 {[%emt 0:00:22]} Re8 {[%emt 0:00:52]} 31. Qh8+ {[%emt 0:02:38]} Rg8 {[%emt 0:00:10]} 32. Qf6 {[%emt 0:00:43]} Rg7 {[%emt 0:00:11]} 33. Bxf7 {[%emt 0:00:47]} Re1+ {[%emt 0:00:57]} 34. Kh2 {[%emt 0:00:02]} Rh7 {[%emt 0:01:52]} 35. Bg6+ {[%emt 0:00:44]} Kg8 {[%emt 0:00:09]} 36. Qd8+ {[%emt 0:00:23]} 1-0

[Event "European Womens-ch 2025"]
[Site "Rhodes"]
[Date "2025.03.31"]
[Round "1.40"]
[White "Subramanian, Anusha"]
[Black "Zimina, Olga"]
[Result "0-1"]
[Annotator "RC"]
[ECO "D02"]
[WhiteElo "2026"]
[BlackElo "2293"]
[PlyCount "80"]
[EventDate "2025.03.29"]
[EventType "swiss"]
[EventCountry "GRE"]
[SourceTitle "playchess.com"]
[Source "ChessBase"]
[SourceQuality "1"]
[TimeControl "40/5400+30:1800+30"]

1. d4 {[%emt 0:00:03]} d5 {[%emt 0:00:15]} 2. Nf3 {[%emt 0:00:06]} Nf6 {[%emt 0:00:06]} 3. Bf4 {[%emt 0:00:05]} c5 {[%emt 0:00:29]} 4. e3 {[%emt 0:00:07]} Nc6 {[%emt 0:00:07]} 5. Nbd2 {[%emt 0:00:08]} cxd4 {[%emt 0:01:45]} 6. exd4 {[%emt 0:00:08]} a6 {[%emt 0:00:09]} 7. c3 {[%emt 0:03:28]} Bf5 {[%emt 0:00:21]} 8. Ne5 {[%emt 0:03:04]} Nxe5 {[%emt 0:03:50]} 9. Bxe5 {[%emt 0:01:15]} e6 {[%emt 0:00:20]} 10. Nf3 {[%emt 0:04:22]} Be7 {[%emt 0:09:40]} 11. Bd3 {[%emt 0:01:50]} Bg4 {[%emt 0:13:25]} 12. h3 {[%emt 0:08:23]} Bh5 {[%emt 0:00:17]} 13. Be2 {[%emt 0:02:29]} O-O {[%emt 0:02:41]} 14. O-O {[%emt 0:01:04]} Ne4 {[%emt 0:06:35]} 15. Nd2 {[%emt 0:02:40]} Bxe2 {[%emt 0:00:40]} 16. Qxe2 {[%emt 0:00:06]} Nd6 {[%emt 0:00:18]} 17. Rfe1 {[%emt 0:06:17]} Re8 {[%emt 0:07:13]} 18. Qg4 {[%emt 0:07:29]} Bf6 {[%emt 0:02:56]} 19. f4 {[%emt 0:07:26]} Nf5 {[%emt 0:04:00]} 20. Bxf6 {[%emt 0:04:20]} Qxf6 {[%emt 0:00:06]} 21. Nf1 {[%emt 0:00:27]} b5 {[%emt 0:02:40]} 22. Ng3 {[%emt 0:05:45]} b4 {[%emt 0:05:25]} 23. Re5 {[%emt 0:04:43]} Nxg3 {[%emt 0:08:01]} 24. Qxg3 {[%emt 0:00:06]} bxc3 {[%emt 0:00:05]} 25. bxc3 {[%emt 0:00:13]} g6 {[%emt 0:09:50]} 26. h4 {[%emt 0:06:45]} Rec8 {[%emt 0:04:26]} 27. Rf1 {[%emt 0:02:11]} Kf8 {[%emt 0:04:03]} 28. h5 {[%emt 0:04:14]} Rc6 {[%emt 0:00:45]} 29. Rb1 {[%emt 0:03:42]} Rac8 {[%emt 0:00:17]} 30. Rb3 {[%emt 0:01:19]} a5 {[%emt 0:00:43]} 31. hxg6 {[%emt 0:02:23]} hxg6 {[%emt 0:01:23]} 32. Re3 {[%emt 0:03:01]} Rc4 {[%emt 0:01:35]} 33. Qf3 {[%emt 0:05:17]} a4 {[%emt 0:03:00]} 34. Rb1 {[%emt 0:00:39]} Qf5 {[%emt 0:00:16]} 35. Rb2 {[%emt 0:04:39]} a3 {[%emt 0:00:10]} 36. Rb7 {[%emt 0:05:53]} R4c7 {[%emt 0:00:32]} 37. Rxc7 {[%emt 0:00:52]} Rxc7 {[%emt 0:00:01]} 38. Rd3 {[%emt 0:01:01]} Rb7 {[%emt 0:01:28]} 39. Qd1 {[%emt 0:01:24]} Rb2 {[%emt 0:00:44]} 40. Rf3 {[%emt 0:00:00]} Rb1 {[%emt 0:00:00]} 0-1

[Event "European Womens-ch 2025"]
[Site "Rhodes"]
[Date "2025.03.31"]
[Round "1.41"]
[White "Doluhanova, Evgeniya"]
[Black "Donghvani, Nia"]
[Result "1/2-1/2"]
[Annotator "RC"]
[ECO "A04"]
[WhiteElo "2287"]
[BlackElo "2025"]
[PlyCount "66"]
[EventDate "2025.03.29"]
[EventType "swiss"]
[EventCountry "GRE"]
[SourceTitle "playchess.com"]
[Source "ChessBase"]
[SourceQuality "1"]
[TimeControl "40/5400+30:1800+30"]

1. Nf3 {[%emt 0:00:13]} c5 {[%emt 0:00:05]} 2. b3 {[%emt 0:00:36]} d6 {[%emt 0:01:00]} 3. e3 {[%emt 0:00:53]} e5 {[%emt 0:03:09]} 4. d4 {[%emt 0:00:47]} cxd4 {[%emt 0:08:37]} 5. exd4 {[%emt 0:00:10]} e4 {[%emt 0:06:18]} 6. Bb5+ {[%emt 0:02:55]} Bd7 {[%emt 0:07:00]} 7. Bxd7+ {[%emt 0:00:41]} Nxd7 {[%emt 0:00:55]} 8. Qe2 {[%emt 0:00:55]} d5 {[%emt 0:00:04]} 9. O-O {[%emt 0:08:52]} Bd6 {[%emt 0:07:40]} 10. Ba3 {[%emt 0:10:17]} Bxa3 {[%emt 0:09:41]} 11. Nxa3 {[%emt 0:00:08]} Ngf6 {[%emt 0:01:53]} 12. Ne5 {[%emt 0:02:33]} O-O {[%emt 0:00:30]} 13. c4 {[%emt 0:00:51]} Qe7 {[%emt 0:06:42]} 14. Nxd7 {[%emt 0:00:12]} Qxd7 {[%emt 0:00:36]} 15. Nc2 {[%emt 0:01:14]} Rfe8 {[%emt 0:05:18]} 16. Rfd1 {[%emt 0:05:09]} Rad8 {[%emt 0:06:30]} 17. Rac1 {[%emt 0:01:00]} g6 {[%emt 0:05:52]} 18. Ne3 {[%emt 0:02:04]} Qe6 {[%emt 0:06:57]} 19. h3 {[%emt 0:01:14]} a6 {[%emt 0:02:33]} 20. Qe1 {[%emt 0:02:03]} Rd7 {[%emt 0:01:25]} 21. a4 {[%emt 0:12:32]} Red8 {[%emt 0:01:39]} 22. Qb4 {[%emt 0:04:03]} h5 {[%emt 0:08:48]} 23. a5 {[%emt 0:00:42]} g5 {[%emt 0:01:44]} 24. c5 {[%emt 0:06:57]} g4 {[%emt 0:00:46]} 25. Qb6 {[%emt 0:03:51]} gxh3 {[%emt 0:02:17]} 26. gxh3 {[%emt 0:06:33]} Rc8 {[%emt 0:01:04]} 27. Qxe6 {[%emt 0:01:14]} fxe6 {[%emt 0:00:01]} 28. Kf1 {[%emt 0:01:45]} Rg7 {[%emt 0:00:44]} 29. Ke2 {[%emt 0:00:42]} Nd7 {[%emt 0:00:46]} 30. Rg1 {[%emt 0:16:00]} Nb8 {[%emt 0:00:25]} 31. Rxg7+ {[%emt 0:00:06]} Kxg7 {[%emt 0:00:01]} 32. Rg1+ {[%emt 0:00:07]} Kf6 {[%emt 0:01:06]} 33. Nc2 {[%emt 0:00:10]} Nc6 {[%emt 0:01:11]} 1/2-1/2

[Event "European Womens-ch 2025"]
[Site "Rhodes"]
[Date "2025.03.31"]
[Round "1.42"]
[White "Hariharan, Shambavi"]
[Black "Mkrtchyan, Mariam"]
[Result "0-1"]
[Annotator "RC"]
[ECO "E06"]
[WhiteElo "2024"]
[BlackElo "2282"]
[PlyCount "132"]
[EventDate "2025.03.29"]
[EventType "swiss"]
[EventCountry "GRE"]
[SourceTitle "playchess.com"]
[Source "ChessBase"]
[SourceQuality "1"]
[TimeControl "40/5400+30:1800+30"]

1. d4 {[%emt 0:00:10]} d5 {[%emt 0:00:06]} 2. c4 {[%emt 0:00:07]} e6 {[%emt 0:00:05]} 3. Nf3 {[%emt 0:00:04]} Nf6 {[%emt 0:00:07]} 4. g3 {[%emt 0:00:18]} Be7 {[%emt 0:00:12]} 5. Bg2 {[%emt 0:00:12]} O-O {[%emt 0:00:05]} 6. O-O {[%emt 0:00:14]} a5 {[%emt 0:00:05]} 7. Qc2 {[%emt 0:01:30]} Nc6 {[%emt 0:00:24]} 8. a3 {[%emt 0:01:33]} dxc4 {[%emt 0:00:19]} 9. Qxc4 {[%emt 0:00:23]} a4 {[%emt 0:00:04]} 10. Nc3 {[%emt 0:02:47]} Bd7 {[%emt 0:00:11]} 11. Ne5 {[%emt 0:03:04]} Na5 {[%emt 0:00:59]} 12. Qd3 {[%emt 0:02:13]} Be8 {[%emt 0:00:27]} 13. Rd1 {[%emt 0:04:15]} Nd5 {[%emt 0:02:23]} 14. Be4 {[%emt 0:17:04]} h6 {[%emt 0:03:38]} 15. Qf3 {[%emt 0:04:13]} Nxc3 {[%emt 0:33:27]} 16. bxc3 {[%emt 0:03:35]} Rb8 {[%emt 0:00:10]} 17. Be3 {[%emt 0:07:23]} b5 {[%emt 0:04:56]} 18. Bc2 {[%emt 0:08:38]} Bd6 {[%emt 0:07:34]} 19. h4 {[%emt 0:04:19]} f5 {[%emt 0:02:50]} 20. h5 {[%emt 0:09:06]} Bxe5 {[%emt 0:08:16]} 21. dxe5 {[%emt 0:00:20]} Qe7 {[%emt 0:00:07]} 22. Bf4 {[%emt 0:08:31]} Bc6 {[%emt 0:04:43]} 23. e4 {[%emt 0:03:57]} Nb3 {[%emt 0:03:10]} 24. Rab1 {[%emt 0:04:01]} Nc5 {[%emt 0:00:22]} 25. Qe2 {[%emt 0:03:01]} Bxe4 {[%emt 0:01:54]} 26. c4 {[%emt 0:03:39]} bxc4 {[%emt 0:14:02]} 27. Qxc4 {[%emt 0:01:48]} Bd5 {[%emt 0:01:48]} 28. Qc3 {[%emt 0:01:18]} Nb3 {[%emt 0:02:22]} 29. Be3 {[%emt 0:02:18]} Qxa3 {[%emt 0:05:01]} 30. Ra1 {[%emt 0:03:45]} Qb4 {[%emt 0:01:34]} 31. Qxb4 {[%emt 0:00:15]} Rxb4 {[%emt 0:00:01]} 32. Bxb3 {[%emt 0:00:09]} axb3 {[%emt 0:02:41]} 33. Bc5 {[%emt 0:00:56]} Rb5 {[%emt 0:01:49]} 34. Bxf8 {[%emt 0:00:13]} Kxf8 {[%emt 0:00:00]} 35. Rab1 {[%emt 0:00:08]} c5 {[%emt 0:00:23]} 36. Rb2 {[%emt 0:00:22]} Ke7 {[%emt 0:00:49]} 37. f4 {[%emt 0:00:07]} Be4 {[%emt 0:01:03]} 38. Rc1 {[%emt 0:00:46]} Bc2 {[%emt 0:00:24]} 39. Rcxc2 {[%emt 0:02:11]} bxc2 {[%emt 0:00:05]} 40. Rxc2 {[%emt 0:00:00]} Kd7 {[%emt 0:00:00]} 41. Rd2+ {[%emt 0:00:23]} Kc7 {[%emt 0:00:32]} 42. Rc2 {[%emt 0:05:15]} Kc6 {[%emt 0:01:31]} 43. Rd2 {[%emt 0:08:06]} c4 {[%emt 0:04:04]} 44. Kf2 {[%emt 0:02:10]} Rd5 {[%emt 0:01:33]} 45. Ra2 {[%emt 0:01:34]} Kb5 {[%emt 0:00:31]} 46. Rb2+ {[%emt 0:02:42]} Kc5 {[%emt 0:07:22]} 47. Rb8 {[%emt 0:05:10]} c3 {[%emt 0:00:52]} 48. Ke3 {[%emt 0:01:24]} Kc4 {[%emt 0:01:12]} 49. Rc8+ {[%emt 0:01:38]} Kb3 {[%emt 0:07:13]} 50. Rb8+ {[%emt 0:01:13]} Ka2 {[%emt 0:00:05]} 51. Ra8+ {[%emt 0:01:12]} Kb2 {[%emt 0:00:06]} 52. Rb8+ {[%emt 0:00:13]} Ka3 {[%emt 0:02:55]} 53. Ra8+ {[%emt 0:00:15]} Kb4 {[%emt 0:00:25]} 54. Rb8+ {[%emt 0:00:23]} Rb5 {[%emt 0:00:44]} 55. Rc8 {[%emt 0:01:07]} Kb3 {[%emt 0:02:15]} 56. Kd3 {[%emt 0:00:49]} Rd5+ {[%emt 0:00:08]} 57. Ke2 {[%emt 0:00:47]} Rd4 {[%emt 0:05:15]} 58. Rb8+ {[%emt 0:02:53]} Rb4 {[%emt 0:00:29]} 59. Rc8 {[%emt 0:00:06]} Kc2 {[%emt 0:00:22]} 60. Rc6 {[%emt 0:00:51]} Re4+ {[%emt 0:00:11]} 61. Kf3 {[%emt 0:00:26]} Kd3 {[%emt 0:03:25]} 62. Rd6+ {[%emt 0:01:07]} Rd4 {[%emt 0:00:15]} 63. Rxe6 {[%emt 0:02:28]} c2 {[%emt 0:00:11]} 64. Rc6 {[%emt 0:00:12]} Rc4 {[%emt 0:00:28]} 65. Rd6+ {[%emt 0:00:19]} Kc3 {[%emt 0:00:10]} 66. e6 {[%emt 0:00:13]} c1=Q {[%emt 0:00:26]} 0-1